[Event "Early-Titled-Tuesday-Blitz-March-19-2024"]
[Site "Chess.com"]
[Date "2024.03.19"]
[Round "10"]
[White "bubeliang"]
[Black "bescmelasti"]
[Result "1/2-1/2"]
[WhiteElo "2800"]
[BlackElo "2675"]
[TimeControl "180+1"]
[EndTime "9:57:54 PDT"]
[Termination "Game drawn - insufficient material"]

1. d4 {[%clk 0:03:00.9]} 1... d5 {[%clk 0:02:55.5]} 2. Nc3 {[%clk 0:02:59.4]}
2... Nf6 {[%clk 0:02:47.6]} 3. Bf4 {[%clk 0:02:58.8]} 3... c5 {[%clk 0:02:38.5]}
4. e4 {[%clk 0:02:58.9]} 4... Nxe4 {[%clk 0:02:36.5]} 5. Nxe4 {[%clk 0:02:59]}
5... dxe4 {[%clk 0:02:37.4]} 6. dxc5 {[%clk 0:02:59.7]} 6... Qa5+ {[%clk
0:02:36.3]} 7. c3 {[%clk 0:03:00]} 7... Qxc5 {[%clk 0:02:36]} 8. Qa4+ {[%clk
0:03:00.2]} 8... Nc6 {[%clk 0:02:36.7]} 9. Qxe4 {[%clk 0:02:59.5]} 9... g6
{[%clk 0:02:37.3]} 10. Nf3 {[%clk 0:02:57.4]} 10... Bg7 {[%clk 0:02:34.1]} 11.
Qe3 {[%clk 0:02:57.2]} 11... Qxe3+ {[%clk 0:02:32.3]} 12. Bxe3 {[%clk
0:02:58.1]} 12... Be6 {[%clk 0:02:30.8]} 13. Be2 {[%clk 0:02:47.1]} 13... O-O
{[%clk 0:02:27.3]} 14. O-O {[%clk 0:02:47.6]} 14... Rfd8 {[%clk 0:02:24.6]} 15.
a3 {[%clk 0:02:37.1]} 15... Na5 {[%clk 0:02:08.3]} 16. Rad1 {[%clk 0:02:18.6]}
16... Bc4 {[%clk 0:02:05.7]} 17. Bxc4 {[%clk 0:02:06.8]} 17... Nxc4 {[%clk
0:02:06.6]} 18. Bd4 {[%clk 0:02:07]} 18... Bxd4 {[%clk 0:01:31.8]} 19. cxd4
{[%clk 0:01:55.8]} 19... Nxb2 {[%clk 0:01:29.4]} 20. Rb1 {[%clk 0:01:53.5]}
20... Nc4 {[%clk 0:01:29.8]} 21. Rxb7 {[%clk 0:01:53.5]} 21... Nxa3 {[%clk
0:01:27.2]} 22. Ra1 {[%clk 0:01:47.3]} 22... Nc2 {[%clk 0:01:21.5]} 23. Raxa7
{[%clk 0:01:15.7]} 23... Rxa7 {[%clk 0:01:20.4]} 24. Rxa7 {[%clk 0:01:16.6]}
24... Nxd4 {[%clk 0:01:19.3]} 25. Nxd4 {[%clk 0:01:14.6]} 25... Rxd4 {[%clk
0:01:19]} 26. g3 {[%clk 0:01:15.3]} 26... e6 {[%clk 0:01:16.5]} 27. Kg2 {[%clk
0:01:15.7]} 27... g5 {[%clk 0:01:14.8]} 28. h3 {[%clk 0:01:12.6]} 28... Kg7
{[%clk 0:01:14.5]} 29. Ra5 {[%clk 0:01:12.1]} 29... Kg6 {[%clk 0:01:14.7]} 30.
Ra8 {[%clk 0:01:11.9]} 30... Rb4 {[%clk 0:01:15.2]} 31. Rg8+ {[%clk 0:01:09.7]}
31... Kf6 {[%clk 0:01:15.7]} 32. Rh8 {[%clk 0:01:09.3]} 32... Kg7 {[%clk
0:01:16]} 33. Ra8 {[%clk 0:01:08.8]} 33... h6 {[%clk 0:01:13]} 34. Ra5 {[%clk
0:01:07.9]} 34... Kf6 {[%clk 0:01:07.1]} 35. Ra6 {[%clk 0:01:07.5]} 35... Kg6
{[%clk 0:00:59.2]} 36. Ra8 {[%clk 0:01:06.7]} 36... Kg7 {[%clk 0:00:57.7]} 37.
Ra6 {[%clk 0:01:06.1]} 37... h5 {[%clk 0:00:55.4]} 38. Ra5 {[%clk 0:01:02.2]}
38... f6 {[%clk 0:00:54.2]} 39. Ra6 {[%clk 0:01:01.7]} 39... e5 {[%clk
0:00:54.3]} 40. Ra7+ {[%clk 0:00:58.4]} 40... Kg6 {[%clk 0:00:54.3]} 41. Re7
{[%clk 0:00:57.8]} 41... Kf5 {[%clk 0:00:51]} 42. Rh7 {[%clk 0:00:57]} 42... Kg6
{[%clk 0:00:51.1]} 43. Re7 {[%clk 0:00:56.8]} 43... Rd4 {[%clk 0:00:51.4]} 44.
Re8 {[%clk 0:00:55.2]} 44... Ra4 {[%clk 0:00:30.7]} 45. Rg8+ {[%clk 0:00:53.1]}
45... Kh6 {[%clk 0:00:25.3]} 46. Rh8+ {[%clk 0:00:52.9]} 46... Kg6 {[%clk
0:00:23.8]} 47. Rg8+ {[%clk 0:00:52.9]} 47... Kh7 {[%clk 0:00:23.8]} 48. Rf8
{[%clk 0:00:52.1]} 48... Kg7 {[%clk 0:00:23.9]} 49. Rb8 {[%clk 0:00:52.2]} 49...
Ra2 {[%clk 0:00:23.8]} 50. Rb4 {[%clk 0:00:50.1]} 50... Kg6 {[%clk 0:00:22.5]}
51. g4 {[%clk 0:00:47.5]} 51... h4 {[%clk 0:00:21.4]} 52. Kg1 {[%clk 0:00:44.3]}
52... Kf7 {[%clk 0:00:18.2]} 53. Rb7+ {[%clk 0:00:42.4]} 53... Ke6 {[%clk
0:00:18.5]} 54. Rb6+ {[%clk 0:00:42.9]} 54... Kf7 {[%clk 0:00:17.8]} 55. Rb7+
{[%clk 0:00:43.3]} 55... Kg6 {[%clk 0:00:18.4]} 56. Rb4 {[%clk 0:00:43.4]} 56...
Rd2 {[%clk 0:00:18.2]} 57. Kg2 {[%clk 0:00:41.7]} 57... Kf7 {[%clk 0:00:18.1]}
58. Rb7+ {[%clk 0:00:41.3]} 58... Ke6 {[%clk 0:00:18.7]} 59. Kg1 {[%clk
0:00:38.3]} 59... e4 {[%clk 0:00:16.8]} 60. Rb6+ {[%clk 0:00:34.8]} 60... Ke5
{[%clk 0:00:16.5]} 61. Rb5+ {[%clk 0:00:35]} 61... Rd5 {[%clk 0:00:17]} 62. Rb6
{[%clk 0:00:33.6]} 62... Rd1+ {[%clk 0:00:06.3]} 63. Kg2 {[%clk 0:00:33.9]}
63... Rd5 {[%clk 0:00:07.2]} 64. Kg1 {[%clk 0:00:31.7]} 64... f5 {[%clk
0:00:07.7]} 65. gxf5 {[%clk 0:00:26.4]} 65... Kxf5 {[%clk 0:00:08.6]} 66. Rb8
{[%clk 0:00:26.1]} 66... Rd2 {[%clk 0:00:05.8]} 67. Rf8+ {[%clk 0:00:24]} 67...
Ke5 {[%clk 0:00:05.9]} 68. Rg8 {[%clk 0:00:22.5]} 68... Kf4 {[%clk 0:00:03.7]}
69. Kg2 {[%clk 0:00:17.8]} 69... e3 {[%clk 0:00:03.5]} 70. Rf8+ {[%clk
0:00:17.9]} 70... Ke4 {[%clk 0:00:02.1]} 71. Re8+ {[%clk 0:00:18.5]} 71... Kf4
{[%clk 0:00:02.7]} 72. Rxe3 {[%clk 0:00:18.4]} 72... Rd5 {[%clk 0:00:03.2]} 73.
Rf3+ {[%clk 0:00:18.4]} 73... Ke4 {[%clk 0:00:03.7]} 74. Rf8 {[%clk 0:00:19]}
74... Rf5 {[%clk 0:00:03.3]} 75. Ra8 {[%clk 0:00:17.1]} 75... Ke5 {[%clk
0:00:03.2]} 76. Ra6 {[%clk 0:00:17.5]} 76... Rf6 {[%clk 0:00:03.1]} 77. Ra5+
{[%clk 0:00:17.9]} 77... Kf4 {[%clk 0:00:03.4]} 78. Rb5 {[%clk 0:00:18.3]} 78...
Rf5 {[%clk 0:00:02.8]} 79. Rb4+ {[%clk 0:00:18.9]} 79... Ke5 {[%clk 0:00:03.7]}
80. Rb6 {[%clk 0:00:19.7]} 80... Rf6 {[%clk 0:00:03.7]} 81. Rb5+ {[%clk
0:00:19.9]} 81... Kf4 {[%clk 0:00:04.3]} 82. Kf1 {[%clk 0:00:20]} 82... Rf5
{[%clk 0:00:04.9]} 83. Rb4+ {[%clk 0:00:19]} 83... Ke5 {[%clk 0:00:04.8]} 84.
Ke2 {[%clk 0:00:19.3]} 84... Rf4 {[%clk 0:00:05]} 85. Rb5+ {[%clk 0:00:19]}
85... Kf6 {[%clk 0:00:05.6]} 86. Ke3 {[%clk 0:00:19.4]} 86... Rf5 {[%clk
0:00:06]} 87. Rb6+ {[%clk 0:00:17.9]} 87... Kg7 {[%clk 0:00:06.3]} 88. Rc6
{[%clk 0:00:16.1]} 88... Kf7 {[%clk 0:00:06.5]} 89. f3 {[%clk 0:00:15.1]} 89...
Kg7 {[%clk 0:00:06.8]} 90. Rc3 {[%clk 0:00:14.7]} 90... Re5+ {[%clk 0:00:06.4]}
91. Kf2 {[%clk 0:00:14.2]} 91... Kf6 {[%clk 0:00:06.1]} 92. Rc4 {[%clk
0:00:14.4]} 92... Kf5 {[%clk 0:00:06.5]} 93. Rc8 {[%clk 0:00:14.6]} 93... Ra5
{[%clk 0:00:06.7]} 94. Rf8+ {[%clk 0:00:14.8]} 94... Kg6 {[%clk 0:00:07.4]} 95.
f4 {[%clk 0:00:13]} 95... Ra3 {[%clk 0:00:03.2]} 96. Rg8+ {[%clk 0:00:08.3]}
96... Kf5 {[%clk 0:00:03.3]} 97. Rxg5+ {[%clk 0:00:08.7]} 97... Kxf4 {[%clk
0:00:02.1]} 98. Rg4+ {[%clk 0:00:09.3]} 98... Kf5 {[%clk 0:00:02.1]} 99. Rxh4
{[%clk 0:00:10.2]} 99... Kg5 {[%clk 0:00:02.6]} 100. Rg4+ {[%clk 0:00:10.6]}
100... Kh5 {[%clk 0:00:03.2]} 101. Rg8 {[%clk 0:00:10.9]} 101... Rxh3 {[%clk
0:00:02.7]} 102. Rh8+ {[%clk 0:00:11.5]} 102... Kg4 {[%clk 0:00:02.9]} 103. Rxh3
{[%clk 0:00:12.4]} 103... Kxh3 {[%clk 0:00:03.3]} 1/2-1/2

[Event "Early-Titled-Tuesday-Blitz-March-19-2024"]
[Site "Chess.com"]
[Date "2024.03.19"]
[Round "10"]
[White "Willhaven3"]
[Black "LeoWin2012"]
[Result "1/2-1/2"]
[WhiteElo "2519"]
[BlackElo "2247"]
[TimeControl "180+1"]
[EndTime "9:58:04 PDT"]
[Termination "Game drawn - insufficient material"]

1. e4 {[%clk 0:03:00.9]} 1... e5 {[%clk 0:02:39.9]} 2. f4 {[%clk 0:03:00]} 2...
exf4 {[%clk 0:02:39]} 3. Nf3 {[%clk 0:02:59.8]} 3... Be7 {[%clk 0:02:39.4]} 4.
Bc4 {[%clk 0:02:58.5]} 4... Nf6 {[%clk 0:02:37.5]} 5. Nc3 {[%clk 0:02:58]} 5...
c6 {[%clk 0:02:37]} 6. d4 {[%clk 0:02:57.9]} 6... d5 {[%clk 0:02:36.9]} 7. exd5
{[%clk 0:02:58.3]} 7... cxd5 {[%clk 0:02:37.8]} 8. Bb5+ {[%clk 0:02:58.6]} 8...
Bd7 {[%clk 0:02:32.6]} 9. Bxd7+ {[%clk 0:02:57.9]} 9... Nbxd7 {[%clk 0:02:33.5]}
10. Bxf4 {[%clk 0:02:56.6]} 10... O-O {[%clk 0:02:30.9]} 11. O-O {[%clk
0:02:56.9]} 11... h6 {[%clk 0:02:30.6]} 12. Qd3 {[%clk 0:02:57.2]} 12... Nb6
{[%clk 0:02:24.4]} 13. Ne5 {[%clk 0:02:56.2]} 13... Rc8 {[%clk 0:02:19.5]} 14.
Rf3 {[%clk 0:02:53.9]} 14... Nc4 {[%clk 0:02:17.9]} 15. b3 {[%clk 0:02:53.3]}
15... Nxe5 {[%clk 0:02:15.7]} 16. Bxe5 {[%clk 0:02:52.9]} 16... Ng4 {[%clk
0:02:01.8]} 17. Bg3 {[%clk 0:02:48.6]} 17... Bb4 {[%clk 0:01:55.3]} 18. Ne2
{[%clk 0:02:44.9]} 18... Rc6 {[%clk 0:01:49]} 19. Raf1 {[%clk 0:02:44.2]} 19...
Qc8 {[%clk 0:01:47.6]} 20. c3 {[%clk 0:02:39.7]} 20... Bd6 {[%clk 0:01:45.9]}
21. Bxd6 {[%clk 0:02:38.7]} 21... Rxd6 {[%clk 0:01:46.8]} 22. Nf4 {[%clk
0:02:33.8]} 22... Nf6 {[%clk 0:01:43]} 23. c4 {[%clk 0:02:19.7]} 23... dxc4
{[%clk 0:01:41.8]} 24. bxc4 {[%clk 0:02:20.6]} 24... Rfd8 {[%clk 0:01:39]} 25.
d5 {[%clk 0:02:18.5]} 25... Nd7 {[%clk 0:01:36.9]} 26. Qf5 {[%clk 0:01:55.8]}
26... Qxc4 {[%clk 0:01:32.1]} 27. Nh5 {[%clk 0:01:56]} 27... Nf6 {[%clk
0:01:20.6]} 28. Rg3 {[%clk 0:01:47.2]} 28... Qd4+ {[%clk 0:01:11.7]} 29. Kh1
{[%clk 0:01:46]} 29... Nxh5 {[%clk 0:01:05.2]} 30. Qxf7+ {[%clk 0:01:43.8]}
30... Kh8 {[%clk 0:01:04.1]} 31. Qxh5 {[%clk 0:01:43.1]} 31... Qxd5 {[%clk
0:01:03.1]} 32. Qg4 {[%clk 0:01:38]} 32... Qd4 {[%clk 0:00:57.9]} 33. Qh5 {[%clk
0:01:27.4]} 33... Qd1 {[%clk 0:00:54.6]} 34. Rf3 {[%clk 0:01:25.5]} 34... Rf6
{[%clk 0:00:39.4]} 35. h3 {[%clk 0:00:52.5]} 35... Rxf3 {[%clk 0:00:20.4]} 36.
Qxf3 {[%clk 0:00:53.4]} 36... Qxf3 {[%clk 0:00:19.8]} 37. Rxf3 {[%clk
0:00:54.2]} 37... Rd2 {[%clk 0:00:19.3]} 38. Rb3 {[%clk 0:00:51.5]} 38... b6
{[%clk 0:00:17.6]} 39. Ra3 {[%clk 0:00:51.5]} 39... a5 {[%clk 0:00:17.8]} 40.
Rb3 {[%clk 0:00:51.9]} 40... Rxa2 {[%clk 0:00:16.8]} 41. Rxb6 {[%clk 0:00:51.4]}
41... Ra1+ {[%clk 0:00:16.8]} 42. Kh2 {[%clk 0:00:51.2]} 42... a4 {[%clk
0:00:17.7]} 43. Ra6 {[%clk 0:00:51.6]} 43... Kg8 {[%clk 0:00:17.2]} 44. h4
{[%clk 0:00:51.9]} 44... a3 {[%clk 0:00:17.7]} 45. Kh3 {[%clk 0:00:48.4]} 45...
Kf7 {[%clk 0:00:17.9]} 46. Kg4 {[%clk 0:00:46.4]} 46... Ke7 {[%clk 0:00:11.4]}
47. g3 {[%clk 0:00:46.6]} 47... Kf7 {[%clk 0:00:10.1]} 48. Kh5 {[%clk 0:00:45]}
48... Kf8 {[%clk 0:00:07.2]} 49. g4 {[%clk 0:00:43.7]} 49... a2 {[%clk
0:00:07.2]} 50. Kg6 {[%clk 0:00:40]} 50... Rg1 {[%clk 0:00:04]} 51. Ra8+ {[%clk
0:00:39.8]} 51... Ke7 {[%clk 0:00:03.4]} 52. Ra7+ {[%clk 0:00:37.5]} 52... Ke6
{[%clk 0:00:03.4]} 53. Rxa2 {[%clk 0:00:36.1]} 53... Rxg4+ {[%clk 0:00:03.4]}
54. Kh5 {[%clk 0:00:36.3]} 54... Rg1 {[%clk 0:00:03]} 55. Ra7 {[%clk 0:00:35.9]}
55... Kf6 {[%clk 0:00:02.7]} 56. Ra6+ {[%clk 0:00:35.4]} 56... Kf7 {[%clk
0:00:02.2]} 57. Ra7+ {[%clk 0:00:35.6]} 57... Kg8 {[%clk 0:00:02.8]} 58. Rb7
{[%clk 0:00:32.6]} 58... Kh7 {[%clk 0:00:03.2]} 59. Ra7 {[%clk 0:00:32.5]} 59...
Kh8 {[%clk 0:00:02.9]} 60. Ra8+ {[%clk 0:00:30.8]} 60... Kh7 {[%clk 0:00:02.7]}
61. Ra7 {[%clk 0:00:31.2]} 61... Re1 {[%clk 0:00:03.3]} 62. Kg4 {[%clk
0:00:30.5]} 62... Re6 {[%clk 0:00:03.6]} 63. Kf5 {[%clk 0:00:30.1]} 63... Rf6+
{[%clk 0:00:04.2]} 64. Kg4 {[%clk 0:00:30.6]} 64... Kg6 {[%clk 0:00:04.4]} 65.
h5+ {[%clk 0:00:29.8]} 65... Kh7 {[%clk 0:00:04.9]} 66. Rb7 {[%clk 0:00:29.8]}
66... Kg8 {[%clk 0:00:05.2]} 67. Rc7 {[%clk 0:00:28.9]} 67... Kf8 {[%clk
0:00:05.4]} 68. Rc8+ {[%clk 0:00:29]} 68... Kf7 {[%clk 0:00:05.3]} 69. Rc7+
{[%clk 0:00:29.4]} 69... Kf8 {[%clk 0:00:05.8]} 70. Rc5 {[%clk 0:00:28.7]} 70...
Rd6 {[%clk 0:00:05]} 71. Rc7 {[%clk 0:00:26.8]} 71... Kg8 {[%clk 0:00:04.6]} 72.
Re7 {[%clk 0:00:26.3]} 72... Rf6 {[%clk 0:00:05.1]} 73. Re5 {[%clk 0:00:25.8]}
73... Kf8 {[%clk 0:00:05.4]} 74. Ra5 {[%clk 0:00:26.3]} 74... Rb6 {[%clk
0:00:05.4]} 75. Ra8+ {[%clk 0:00:24.7]} 75... Kf7 {[%clk 0:00:05.4]} 76. Ra7+
{[%clk 0:00:21.6]} 76... Kf6 {[%clk 0:00:05.1]} 77. Rc7 {[%clk 0:00:20.4]} 77...
Rb4+ {[%clk 0:00:05]} 78. Kh3 {[%clk 0:00:20.6]} 78... Rb3+ {[%clk 0:00:04.6]}
79. Kg4 {[%clk 0:00:20.6]} 79... Rb4+ {[%clk 0:00:05]} 80. Kg3 {[%clk
0:00:20.9]} 80... Kg5 {[%clk 0:00:04.4]} 81. Rxg7+ {[%clk 0:00:20.5]} 81... Kxh5
{[%clk 0:00:04.9]} 82. Kh3 {[%clk 0:00:20.8]} 82... Rb3+ {[%clk 0:00:05.2]} 83.
Kh2 {[%clk 0:00:21]} 83... Kh4 {[%clk 0:00:05.8]} 84. Rc7 {[%clk 0:00:20.1]}
84... Rb2+ {[%clk 0:00:05.5]} 85. Kg1 {[%clk 0:00:20.5]} 85... h5 {[%clk
0:00:05.4]} 86. Rc4+ {[%clk 0:00:18.3]} 86... Kg3 {[%clk 0:00:05.5]} 87. Rc3+
{[%clk 0:00:18.6]} 87... Kf4 {[%clk 0:00:05.8]} 88. Rc4+ {[%clk 0:00:18.9]}
88... Kf3 {[%clk 0:00:06.3]} 89. Rh4 {[%clk 0:00:18.4]} 89... Rb5 {[%clk
0:00:05]} 90. Rc4 {[%clk 0:00:17.4]} 90... Rg5+ {[%clk 0:00:03.5]} 91. Kh1
{[%clk 0:00:16.9]} 91... Re5 {[%clk 0:00:03.6]} 92. Rc3+ {[%clk 0:00:17.1]}
92... Re3 {[%clk 0:00:03.9]} 93. Rxe3+ {[%clk 0:00:16.9]} 93... Kxe3 {[%clk
0:00:04.8]} 94. Kh2 {[%clk 0:00:17.7]} 94... Kf4 {[%clk 0:00:05.2]} 95. Kh3
{[%clk 0:00:18.6]} 95... Kg5 {[%clk 0:00:05.8]} 96. Kg3 {[%clk 0:00:19]} 96...
h4+ {[%clk 0:00:06.7]} 97. Kh3 {[%clk 0:00:19.5]} 97... Kh5 {[%clk 0:00:07.3]}
98. Kh2 {[%clk 0:00:19.7]} 98... Kg4 {[%clk 0:00:08.2]} 99. Kg2 {[%clk
0:00:20.2]} 99... h3+ {[%clk 0:00:09.1]} 100. Kh2 {[%clk 0:00:20.7]} 100... Kh4
{[%clk 0:00:10]} 101. Kh1 {[%clk 0:00:21.1]} 101... Kg3 {[%clk 0:00:10.9]} 102.
Kg1 {[%clk 0:00:21.5]} 102... Kg4 {[%clk 0:00:10.8]} 103. Kh2 {[%clk 0:00:21.6]}
103... Kh4 {[%clk 0:00:11.7]} 104. Kh1 {[%clk 0:00:21.9]} 104... Kg3 {[%clk
0:00:12.6]} 105. Kg1 {[%clk 0:00:22.2]} 105... Kf3 {[%clk 0:00:11.5]} 106. Kh2
{[%clk 0:00:22.4]} 106... Kg4 {[%clk 0:00:12.4]} 107. Kh1 {[%clk 0:00:22.6]}
107... Kf4 {[%clk 0:00:12.7]} 108. Kg1 {[%clk 0:00:22.8]} 108... Kg3 {[%clk
0:00:12.8]} 109. Kh1 {[%clk 0:00:22.4]} 109... Kf2 {[%clk 0:00:12.7]} 110. Kh2
{[%clk 0:00:22.7]} 110... Kf3 {[%clk 0:00:13.6]} 111. Kxh3 {[%clk 0:00:23.1]}
1/2-1/2

[Event "Early-Titled-Tuesday-Blitz-March-19-2024"]
[Site "Chess.com"]
[Date "2024.03.19"]
[Round "11"]
[White "ATM622"]
[Black "margarita_2703"]
[Result "1-0"]
[WhiteElo "2497"]
[BlackElo "2325"]
[TimeControl "180+1"]
[EndTime "10:01:34 PDT"]
[Termination "ATM622 won by resignation"]

1. d4 {[%clk 0:03:00.9]} 1... d5 {[%clk 0:02:59.8]} 2. c4 {[%clk 0:03:01.2]}
2... c6 {[%clk 0:02:58.8]} 3. Nf3 {[%clk 0:03:01.2]} 3... e6 {[%clk 0:02:58.3]}
4. Nbd2 {[%clk 0:03:00.9]} 4... Nf6 {[%clk 0:02:57.1]} 5. Qc2 {[%clk 0:03:01.2]}
5... Nbd7 {[%clk 0:02:57.1]} 6. g3 {[%clk 0:03:00.8]} 6... b6 {[%clk 0:02:57.2]}
7. Bg2 {[%clk 0:03:00.7]} 7... Bb7 {[%clk 0:02:57.7]} 8. O-O {[%clk 0:03:00.3]}
8... Bd6 {[%clk 0:02:57.5]} 9. Rd1 {[%clk 0:02:59.6]} 9... O-O {[%clk
0:02:57.5]} 10. e4 {[%clk 0:02:57.7]} 10... dxe4 {[%clk 0:02:58.4]} 11. Nxe4
{[%clk 0:02:57.1]} 11... Nxe4 {[%clk 0:02:59.3]} 12. Qxe4 {[%clk 0:02:57.9]}
12... h6 {[%clk 0:02:57.2]} 13. b3 {[%clk 0:02:55.5]} 13... Rc8 {[%clk
0:02:57.3]} 14. Bb2 {[%clk 0:02:54.6]} 14... Ba8 {[%clk 0:02:57.6]} 15. Rac1
{[%clk 0:02:53.1]} 15... Qe7 {[%clk 0:02:56.6]} 16. c5 {[%clk 0:02:47.1]} 16...
bxc5 {[%clk 0:02:54.8]} 17. dxc5 {[%clk 0:02:44.9]} 17... Bxc5 {[%clk
0:02:53.3]} 18. Rxd7 {[%clk 0:02:44.2]} 18... Qxd7 {[%clk 0:02:54.2]} 19. Rxc5
{[%clk 0:02:38.3]} 19... Qd1+ {[%clk 0:02:54.1]} 20. Bf1 {[%clk 0:02:34.3]}
20... Rfd8 {[%clk 0:02:54]} 21. Qe5 {[%clk 0:02:31.9]} 21... f6 {[%clk
0:02:54.1]} 22. Qxe6+ {[%clk 0:02:30.8]} 22... Kh8 {[%clk 0:02:55]} 23. Bxf6
{[%clk 0:02:27.7]} 23... Qxf3 {[%clk 0:02:54.3]} 24. Bxd8 {[%clk 0:02:11]} 24...
Rxd8 {[%clk 0:02:55.2]} 25. Rf5 {[%clk 0:02:07.6]} 25... Qd1 {[%clk 0:02:52]}
26. Qe2 {[%clk 0:01:57.3]} 26... c5 {[%clk 0:02:50.5]} 27. Rf8+ {[%clk
0:01:55.2]} 27... Kh7 {[%clk 0:02:49.3]} 28. Qxd1 {[%clk 0:01:54.4]} 1-0

[Event "Early-Titled-Tuesday-Blitz-March-19-2024"]
[Site "Chess.com"]
[Date "2024.03.19"]
[Round "11"]
[White "Cheer_Down"]
[Black "Dacean99"]
[Result "0-1"]
[WhiteElo "2458"]
[BlackElo "2634"]
[TimeControl "180+1"]
[EndTime "10:02:29 PDT"]
[Termination "Dacean99 won by checkmate"]

1. e4 {[%clk 0:03:00.9]} 1... c5 {[%clk 0:02:58]} 2. Nf3 {[%clk 0:03:00.6]} 2...
d6 {[%clk 0:02:58.5]} 3. d4 {[%clk 0:03:00.7]} 3... cxd4 {[%clk 0:02:59.4]} 4.
Nxd4 {[%clk 0:03:01]} 4... Nf6 {[%clk 0:02:58.7]} 5. Nc3 {[%clk 0:03:01.2]} 5...
a6 {[%clk 0:02:59.2]} 6. Rg1 {[%clk 0:03:01.1]} 6... h5 {[%clk 0:02:56.2]} 7.
Bg5 {[%clk 0:02:59.3]} 7... Qa5 {[%clk 0:02:52.8]} 8. Bd2 {[%clk 0:02:56.1]}
8... Bg4 {[%clk 0:02:49.1]} 9. f3 {[%clk 0:02:50.1]} 9... Bd7 {[%clk 0:02:48.6]}
10. Bc4 {[%clk 0:02:24.1]} 10... Qc5 {[%clk 0:02:37.9]} 11. Bxf7+ {[%clk
0:02:11.9]} 11... Kxf7 {[%clk 0:02:38.8]} 12. Be3 {[%clk 0:02:12.4]} 12... Qa5
{[%clk 0:02:33.8]} 13. Qe2 {[%clk 0:02:11]} 13... Nc6 {[%clk 0:02:32.7]} 14. Nb3
{[%clk 0:02:10]} 14... Qc7 {[%clk 0:02:31.5]} 15. O-O-O {[%clk 0:02:10.1]} 15...
Rc8 {[%clk 0:02:29.3]} 16. Kb1 {[%clk 0:02:10.2]} 16... g6 {[%clk 0:02:27.1]}
17. h3 {[%clk 0:02:10.7]} 17... Bg7 {[%clk 0:02:27]} 18. g4 {[%clk 0:02:11.4]}
18... h4 {[%clk 0:02:23.8]} 19. f4 {[%clk 0:02:10.5]} 19... Na5 {[%clk
0:02:21.6]} 20. f5 {[%clk 0:02:09.2]} 20... Nxb3 {[%clk 0:02:21.1]} 21. axb3
{[%clk 0:02:08.6]} 21... Bb5 {[%clk 0:02:12.5]} 22. Qf2 {[%clk 0:01:51]} 22...
Ke8 {[%clk 0:02:06.8]} 23. fxg6 {[%clk 0:01:46.3]} 23... Rf8 {[%clk 0:02:05.7]}
24. Qxh4 {[%clk 0:01:43.9]} 24... Nxe4 {[%clk 0:02:05.1]} 25. Nxe4 {[%clk
0:01:36.6]} 25... Qxc2+ {[%clk 0:02:04]} 26. Ka2 {[%clk 0:01:37.2]} 26... Qxb2#
{[%clk 0:02:04.3]} 0-1

[Event "Early-Titled-Tuesday-Blitz-March-19-2024"]
[Site "Chess.com"]
[Date "2024.03.19"]
[Round "11"]
[White "only_strong_moves"]
[Black "ikhasu"]
[Result "1-0"]
[WhiteElo "2644"]
[BlackElo "2507"]
[TimeControl "180+1"]
[EndTime "10:02:31 PDT"]
[Termination "only_strong_moves won by resignation"]

1. Nc3 {[%clk 0:02:59.8]} 1... Nf6 {[%clk 0:02:58.6]} 2. e4 {[%clk 0:02:59.4]}
2... e5 {[%clk 0:02:58.7]} 3. Bc4 {[%clk 0:02:58.2]} 3... Nc6 {[%clk 0:02:58.3]}
4. d3 {[%clk 0:02:57]} 4... Na5 {[%clk 0:02:54.1]} 5. Nge2 {[%clk 0:02:55]} 5...
Nxc4 {[%clk 0:02:53.2]} 6. dxc4 {[%clk 0:02:55.9]} 6... Be7 {[%clk 0:02:50.6]}
7. O-O {[%clk 0:02:56.2]} 7... O-O {[%clk 0:02:50.5]} 8. Ng3 {[%clk 0:02:56.9]}
8... d6 {[%clk 0:02:49.7]} 9. h3 {[%clk 0:02:56.9]} 9... Be6 {[%clk 0:02:47.4]}
10. b3 {[%clk 0:02:56.8]} 10... Kh8 {[%clk 0:02:46.4]} 11. Qf3 {[%clk
0:02:56.9]} 11... c6 {[%clk 0:02:35]} 12. a4 {[%clk 0:02:56.4]} 12... d5 {[%clk
0:02:32.8]} 13. cxd5 {[%clk 0:02:49.2]} 13... cxd5 {[%clk 0:02:33]} 14. exd5
{[%clk 0:02:49.7]} 14... Nxd5 {[%clk 0:02:32.5]} 15. Rd1 {[%clk 0:02:47.2]}
15... Nxc3 {[%clk 0:01:29.8]} 16. Rxd8 {[%clk 0:02:46.4]} 16... Raxd8 {[%clk
0:01:29.5]} 17. Qxc3 {[%clk 0:02:45.9]} 17... Rd1+ {[%clk 0:01:30.1]} 18. Kh2
{[%clk 0:02:46.1]} 18... Rc8 {[%clk 0:01:26.5]} 19. Qf3 {[%clk 0:02:41.1]} 19...
Rxc2 {[%clk 0:01:21.6]} 20. Qxd1 {[%clk 0:02:40.3]} 20... Rxf2 {[%clk
0:01:18.5]} 21. Ba3 {[%clk 0:02:37.4]} 21... Bg5 {[%clk 0:01:15.5]} 22. Ne4
{[%clk 0:02:26.8]} 22... Bf4+ {[%clk 0:01:13.3]} 23. Kh1 {[%clk 0:02:27.3]} 1-0

[Event "Early-Titled-Tuesday-Blitz-March-19-2024"]
[Site "Chess.com"]
[Date "2024.03.19"]
[Round "11"]
[White "akanga001"]
[Black "BashiqChess"]
[Result "0-1"]
[WhiteElo "2070"]
[BlackElo "2441"]
[TimeControl "180+1"]
[EndTime "10:02:52 PDT"]
[Termination "BashiqChess won on time"]

1. d4 {[%clk 0:02:49.8]} 1... d5 {[%clk 0:03:00]} 2. c4 {[%clk 0:02:49.6]} 2...
e6 {[%clk 0:03:00.5]} 3. Nc3 {[%clk 0:02:48.6]} 3... a6 {[%clk 0:03:00.7]} 4.
cxd5 {[%clk 0:02:49.5]} 4... exd5 {[%clk 0:03:01.6]} 5. Bf4 {[%clk 0:02:47.7]}
5... Nf6 {[%clk 0:02:59.6]} 6. e3 {[%clk 0:02:44.3]} 6... Bd6 {[%clk 0:03:00.2]}
7. Bg3 {[%clk 0:02:43.2]} 7... O-O {[%clk 0:03:00.4]} 8. Bd3 {[%clk 0:02:43]}
8... Bg4 {[%clk 0:03:00.5]} 9. Nge2 {[%clk 0:02:41.3]} 9... Bh5 {[%clk 0:03:01]}
10. Qc2 {[%clk 0:02:40.7]} 10... Bg6 {[%clk 0:03:01.5]} 11. Bxd6 {[%clk
0:02:38.7]} 11... Qxd6 {[%clk 0:03:01.8]} 12. Nf4 {[%clk 0:02:39.2]} 12... Nc6
{[%clk 0:02:58.7]} 13. Bxg6 {[%clk 0:00:24.9]} 13... hxg6 {[%clk 0:02:56.2]} 14.
Nd3 {[%clk 0:00:25.8]} 14... Rfe8 {[%clk 0:02:53.9]} 0-1